bitfinex/quotes_ETHUSD_20220202
["timestamp","ask_amount","ask_price","bid_price","bid_amount"]
[1643796002263,0.3784117,2776.7,2776.6,1.85066387]
[1643796002462,0.3784117,2776.7,2776.6,0.90015]
[1643796003263,0.3284117,2776.7,2776.6,0.90015]
[1643796003466,1.85293325,2776.7,2776.6,0.90015]
[1643796003664,1.85293325,2776.7,2776.3,1.98032]
[1643796003665,1.85293325,2776.7,2776.3,0.1799]
[1643796003865,2.42489155,2776.6,2776.3,0.1799]
[1643796004065,1.52452155,2776.5,2776.3,0.1799]
[1643796004266,1.60293325,2776.5,2776.2,0.53621387]
[1643796004470,2.13982803,2776.4,2776.2,0.53621387]
[1643796004665,1.52452155,2776.3,2775.6,0.1799]
[1643796004902,1.2912037,2775.9,2775.6,1.08033]
[1643796005111,1.2912037,2775.9,2775.5,0.1801]
[1643796005311,0.3,2775.8,2775.5,0.1801]
[1643796005508,0.0784117,2775.6,2775.4,1.80087]
[1643796005908,0.0784117,2775.6,2775.5,4.18005]
[1643796006508,0.0784117,2775.6,2775.5,6.94936239]
[1643796006809,0.0784117,2775.6,2775.5,5.08048]
[1643796007014,0.0784117,2775.6,2775.5,6.80253351]
[1643796007208,0.0784117,2775.6,2775.5,6.2566883]
[1643796007708,0.0784117,2775.6,2775.5,8.14217749]
[1643796007909,0.0784117,2775.6,2775.5,6.2566883]
[1643796008109,0.0784117,2775.6,2775.5,8.12385576]
[1643796008651,0.0784117,2775.6,2775.5,9.42385576]
[1643796009255,0.0784117,2775.6,2775.5,10.0530346]
[1643796009457,0.0784117,2775.6,2775.5,10.68221344]
[1643796009857,0.0784117,2775.6,2775.5,10.86226344]
[1643796010058,0.0784117,2775.6,2775.5,10.95306517]
[1643796010659,0.0784117,2775.6,2775.5,9.08594771]
[1643796010858,0.0784117,2775.6,2775.5,8.99514598]
[1643796011859,0.0784117,2775.6,2775.5,8.81504598]
[1643796012507,0.0784117,2775.6,2775.5,7.88084119]
[1643796012710,0.0784117,2775.6,2775.5,1.25835768]
[1643796013404,2.7804317,2775.6,2775.1,6.69372]
[1643796013606,2.70202,2775.6,2775.1,1.80112]
[1643796013805,0.41729022,2775.4,2775.1,1.80112]
[1643796014008,1.31798022,2775.4,2775.1,1.80112]
[1643796014213,2.0,2775.3,2775.0,10.0]
[1643796014412,2.88291,2775.2,2775.0,10.0]
[1643796014609,2.88824492,2775.2,2775.0,4.59423]
[1643796014809,0.3,2775.1,2775.0,4.59423]
[1643796015007,0.83285373,2774.5,2773.8,2.82465823]
[1643796015208,0.83285373,2774.5,2774.0,0.1801]
[1643796015209,0.90107,2774.4,2774.0,0.1801]
[1643796015413,0.90107,2774.4,2773.6,3.07666108]
[1643796015414,2.9864829,2774.4,2773.7,0.1802]
[1643796015609,0.18005,2774.3,2773.7,0.1802]
[1643796015807,3.0882712,2774.4,2772.7,3.6031493]
[1643796015808,1.0882712,2774.4,2773.4,0.1802]
[1643796016070,3.0882712,2774.4,2773.3,0.43474789]
[1643796016259,3.0882712,2774.4,2773.4,0.1802]
[1643796016459,3.0882712,2774.4,2773.3,0.61494789]
[1643796016859,0.0784117,2773.8,2773.3,0.61494789]
[1643796017059,0.90108,2773.8,2773.5,0.94022534]
[1643796017264,1.20108,2773.8,2773.3,0.70574711]
[1643796017469,1.20108,2773.8,2773.5,0.90111]
[1643796018468,0.0784117,2773.6,2773.5,0.90111]
[1643796018667,0.0784117,2773.6,2773.3,1.57099922]
[1643796018868,0.0784117,2773.6,2773.3,0.1802]
[1643796018869,2.70373,2773.6,2773.3,0.1802]
[1643796019167,2.70373,2773.6,2773.3,1.08136]
[1643796019567,2.70373,2773.6,2773.3,0.90116]
[1643796020023,0.0784117,2773.4,2773.3,1.20116]
[1643796020223,0.3784117,2773.4,2773.3,3.85116]
[1643796020422,0.3784117,2773.4,2773.3,1.20116]
[1643796020626,0.3784117,2773.4,2773.1,0.1802]
[1643796020627,2.28126241,2773.4,2773.1,0.1802]
[1643796020927,2.28126241,2773.4,2772.8,1.80256]
[1643796020928,0.90133,2773.3,2772.8,1.80256]
[1643796021124,0.3,2773.2,2772.8,1.80256]
[1643796021324,1.80274,2773.1,2772.8,1.80256]
[1643796021524,0.0784117,2773.0,2772.8,1.80256]
[1643796021723,1.80274,2773.1,2772.8,1.80256]
[1643796021724,1.80274,2773.1,2772.8,1.98276]
[1643796022125,1.80274,2773.1,2772.8,1.80256]
[1643796022126,0.90135,2773.0,2772.8,1.80256]
[1643796022324,1.20135,2773.0,2772.8,1.80256]
[1643796022927,0.0784117,2772.9,2772.8,1.80256]
[1643796023125,0.0784117,2772.9,2772.8,6.32251086]
[1643796023330,0.0784117,2772.9,2772.8,7.58418538]
[1643796023554,0.0784117,2772.9,2772.8,2.35271086]
[1643796023754,0.0784117,2772.9,2772.8,2.17251086]
[1643796024164,0.0784117,2772.9,2772.8,1.80256]
[1643796025462,0.0784117,2772.9,2772.6,0.1802]
[1643796025662,0.90118,2773.1,2772.5,1.80269]
[1643796025663,1.08138,2773.1,2772.5,1.80269]
[1643796025864,0.0784117,2772.8,2772.5,1.80269]
[1643796026063,0.90145,2772.7,2772.5,1.80269]
[1643796026262,1.20145,2772.7,2772.5,1.80269]
[1643796026467,1.20145,2772.7,2772.3,0.1802]
[1643796026664,1.38165,2772.7,2772.0,0.1802]
[1643796026864,1.20145,2772.7,2771.9,5.49483805]
[1643796027067,1.20145,2772.7,2771.9,3.14603805]
[1643796027327,0.0784117,2772.3,2772.1,0.81835284]
[1643796027516,0.0784117,2772.3,2772.2,6.90148]
[1643796027517,0.90152,2772.3,2772.2,6.90148]
[1643796027722,1.80303,2772.4,2772.2,6.90148]
[1643796028117,1.80303,2772.4,2772.3,1.0]
[1643796028319,1.80303,2772.4,2772.2,0.90148]
[1643796028719,1.80303,2772.4,2772.1,1.24102411]
[1643796028918,0.0784117,2772.3,2772.1,1.24102411]
[1643796029116,1.80303,2772.4,2772.1,0.42267127]
[1643796029320,1.80303,2772.4,2772.0,0.1802]
[1643796029519,1.80303,2772.4,2771.8,1.98334]
[1643796030017,1.80303,2772.4,2771.8,1.80314]
[1643796030223,1.98323,2772.4,2771.8,1.80314]
[1643796030416,1.98323,2772.4,2771.7,0.1802]
[1643796030417,0.0784117,2772.1,2771.7,0.1802]
[1643796030619,0.90173,2772.1,2771.7,0.1802]
[1643796031260,1.98323,2772.4,2771.7,0.1802]
[1643796031557,1.89579421,2772.3,2771.7,0.1802]
[1643796031759,1.89579421,2772.3,2771.4,0.1802]
[1643796031760,0.1802,2772.2,2771.4,0.1802]
[1643796031956,0.0784117,2772.0,2771.4,0.1802]
[1643796032159,0.9018,2771.9,2771.4,0.1802]
[1643796032657,0.9018,2771.9,2771.6,0.42326515]
[1643796033057,1.80356,2772.3,2771.6,1.32496515]
[1643796033257,0.1802,2772.2,2771.6,1.32496515]
[1643796033460,0.0784117,2771.8,2771.6,1.32496515]
[1643796033660,0.90172,2772.4,2771.6,1.32496515]
[1643796033661,0.1802,2772.3,2771.6,1.32496515]
[1643796034059,0.1802,2772.3,2771.8,0.87500384]
[1643796034814,2.21961576,2772.3,2771.6,1.32496515]
[1643796035008,0.0784117,2772.0,2771.6,0.42326515]
[1643796035515,0.9018,2772.1,2771.6,0.42326515]
[1643796035516,0.1802,2771.9,2771.6,0.42326515]
[1643796035713,0.1802,2772.0,2771.6,0.42326515]
[1643796035911,0.1802,2772.0,2771.6,1.31475703]
[1643796036315,0.1802,2772.0,2771.6,0.42326515]
[1643796036510,1.80365,2772.3,2771.6,0.42326515]
[1643796036511,0.0784117,2771.8,2771.6,0.42326515]
[1643796036712,2.05981595,2772.2,2771.6,0.42326515]
[1643796037312,2.05981595,2772.2,2771.6,1.28198959]
[1643796037528,0.1802,2772.2,2771.6,1.28198959]
[1643796037714,0.1802,2772.2,2771.6,0.42326515]
[1643796038117,0.0784117,2771.9,2771.2,0.13819997]
[1643796038318,0.99999999,2772.1,2771.0,0.1802]
[1643796038319,0.1804,2771.8,2771.0,0.1802]
[1643796038555,0.1804,2771.9,2770.9,0.1804]
[1643796038757,0.1804,2771.9,2770.9,0.87959792]
[1643796039558,0.0784117,2771.4,2770.9,0.87959792]
[1643796039761,0.1804,2771.9,2771.2,0.36106996]
[1643796040159,1.98442,2771.9,2771.2,0.36106996]
[1643796040359,2.09508196,2771.8,2770.8,0.1804]
[1643796040559,0.1804,2771.7,2770.8,0.1804]
[1643796040766,0.90204,2771.6,2770.8,0.1804]
[1643796040960,1.86956521,2771.5,2770.8,0.1804]
[1643796041159,0.0784117,2771.2,2770.8,0.1804]
[1643796041371,0.18005,2771.1,2770.8,0.1804]
[1643796041564,0.18005,2771.1,2770.7,0.53128267]
[1643796041565,2.37035358,2771.3,2770.7,0.53128267]
[1643796041865,2.37035358,2771.3,2770.5,0.90203]
[1643796041866,0.1804,2771.2,2771.1,0.73975489]
[1643796042070,0.18468878,2771.5,2771.1,0.73975489]
[1643796042303,0.00428878,2771.5,2771.0,0.6122]
[1643796042507,0.00428878,2771.5,2771.0,0.2803]
[1643796042713,0.0784117,2771.2,2771.0,0.2803]
[1643796042909,0.1804,2771.7,2771.0,0.2803]
[1643796043107,0.1804,2771.7,2770.6,0.902]
[1643796043313,0.1804,2771.7,2771.3,0.73829492]
[1643796043509,1.88220882,2772.1,2771.4,0.523]
[1643796043510,0.1804,2771.8,2771.4,0.523]
[1643796043710,0.1802,2772.0,2771.5,0.44369795]
[1643796043910,0.1802,2772.2,2771.5,0.44369795]
[1643796044110,0.0784117,2771.9,2771.5,0.44369795]
[1643796044508,0.18005,2772.1,2771.4,0.7032]
[1643796044708,0.18005,2772.1,2771.3,0.1802]
[1643796044908,0.1804,2772.0,2770.7,0.7034]
[1643796045111,0.1804,2772.0,2770.7,1.60524]
[1643796045409,0.1804,2772.2,2770.8,2.4841349]
[1643796045613,0.90171,2772.5,2770.9,0.7034]
[1643796045815,0.90171,2772.5,2771.1,0.01295758]
[1643796046051,0.1802,2772.4,2771.2,0.7032]
[1643796046253,0.1802,2772.4,2771.2,1.0032]
[1643796046454,2.06012565,2772.4,2771.2,1.0032]
[1643796046654,2.05921467,2772.4,2771.8,0.39632893]
[1643796047255,0.0784117,2772.1,2771.2,1.0032]
[1643796047458,2.05921467,2772.4,2771.2,1.0032]
[1643796047459,2.05921467,2772.4,2771.4,0.3]
[1643796047659,0.90181,2772.2,2771.2,0.7032]
[1643796047863,0.90181,2772.2,2771.2,0.1802]
[1643796047864,0.99999999,2772.0,2771.2,0.1802]
[1643796048061,2.78281169,2771.9,2771.2,0.1802]
[1643796048263,3.08281169,2771.9,2771.2,0.1802]
[1643796048761,0.0784117,2771.6,2771.2,0.1802]
[1643796048959,3.38281169,2771.9,2771.2,0.1802]
[1643796049563,1.0,2771.8,2771.2,0.1802]
[1643796049800,2.17724542,2771.7,2771.2,0.1802]
[1643796050001,2.17724542,2771.7,2771.1,0.33837384]
[1643796050410,0.0784117,2771.4,2771.1,0.33837384]
[1643796050607,2.17724542,2771.7,2770.8,0.1804]
[1643796050808,2.17724542,2771.7,2770.6,0.1804]
[1643796050809,3.35729541,2771.7,2770.6,0.1804]
[1643796051113,2.35729542,2771.7,2770.6,0.1804]
[1643796051310,1.80416,2771.4,2770.6,0.1804]
[1643796051507,2.62397076,2771.3,2770.4,0.87571417]
[1643796051807,2.62397076,2771.3,2770.9,0.40471524]
[1643796052710,1.08246,2771.3,2770.9,0.40471524]
[1643796053410,0.0784117,2771.1,2770.9,0.40471524]
[1643796053662,1.07116,2771.2,2770.9,0.35471524]
[1643796054464,2.94720245,2771.2,2770.4,0.7034]
[1643796054660,1.07116,2771.2,2770.4,0.7034]
[1643796054856,0.0784117,2770.8,2770.4,0.7034]
[1643796055057,0.0784117,2770.8,2770.5,1.92453531]
[1643796055058,1.97325,2770.8,2770.5,1.92453531]
[1643796055258,1.07116,2770.8,2770.6,0.1804]
[1643796055457,1.07116,2770.8,2770.6,0.7034]
[1643796056263,1.07116,2770.8,2770.6,1.14946539]
[1643796056461,0.0784117,2770.7,2770.6,1.14946539]
[1643796056858,0.0784117,2770.7,2770.6,5.79946539]
[1643796058308,0.0784117,2770.7,2770.6,6.44769302]
[1643796059407,0.0784117,2770.7,2770.6,8.48636814]
[1643796059712,0.1804,2771.6,2770.9,0.90181]
[1643796059909,0.25,2771.8,2771.0,3.07879646]
[1643796060112,0.1804,2772.1,2771.1,0.01324797]
[1643796060311,2.7061,2772.2,2771.2,0.7034]
[1643796060513,2.7061,2772.2,2771.8,0.43464612]
[1643796060909,1.25136,2772.1,2771.4,0.70736859]
[1643796061152,1.25136,2772.1,2771.4,0.523]
[1643796062359,1.25136,2772.1,2771.5,0.44305158]
[1643796062760,0.90185,2771.9,2771.5,0.44305158]
[1643796062962,0.90185,2771.9,2771.2,0.86679465]
[1643796063162,1.07116,2771.8,2771.2,0.86679465]
[1643796063360,1.80368,2771.7,2771.1,0.7032]
[1643796063561,3.00561121,2771.6,2771.1,0.7032]
[1643796063762,1.25156,2771.6,2771.1,0.7032]
[1643796064260,1.25156,2771.6,2771.1,0.1802]
[1643796064661,3.12245552,2771.6,2771.1,0.1802]
[1643796065303,3.12245552,2771.6,2770.9,0.7080782]
[1643796065505,2.70585,2771.5,2770.9,0.7080782]
[1643796065704,1.25156,2771.4,2770.9,0.7080782]
[1643796065904,1.08234,2771.4,2770.9,0.7080782]
[1643796066511,1.08234,2771.4,2770.9,0.37213085]
[1643796066702,2.98833769,2771.4,2770.7,0.56036096]
[1643796066905,2.94761621,2771.4,2770.7,0.56036096]
[1643796067104,1.08234,2771.4,2770.7,0.56036096]
[1643796067709,0.88234,2771.4,2770.7,0.86036096]
[1643796067909,0.45194,2771.4,2770.8,0.523]
[1643796068111,0.44194,2771.4,2770.8,0.523]
[1643796068851,0.44194,2771.4,2771.2,0.44436572]
[1643796069057,0.40194,2771.4,2771.2,0.44436572]
[1643796069251,0.47194,2771.4,2771.2,0.44436572]
[1643796069451,0.33194,2771.4,2771.2,0.44436572]
[1643796069852,0.33194,2771.4,2771.1,0.1804]
[1643796070854,0.22004,2771.4,2771.2,0.34625374]
[1643796071055,2.63589,2771.5,2771.2,0.34625374]
[1643796071253,2.34589,2771.5,2771.2,0.34625374]
[1643796071452,0.77194,2771.4,2771.2,0.34625374]
[1643796071659,0.77194,2771.4,2771.2,1.24799374]
[1643796072059,0.01,2771.7,2771.3,0.523]
[1643796072305,0.01,2771.7,2771.3,0.7034]
[1643796072506,0.91168,2771.7,2771.3,0.7034]
[1643796072905,0.90168,2771.7,2771.3,0.7034]
[1643796073105,0.3,2771.6,2771.3,0.7034]
[1643796075705,0.3,2771.6,2771.3,0.523]
[1643796077961,0.1804,2771.8,2771.3,0.52824642]
[1643796078161,1.15177,2772.1,2771.7,0.76790025]
[1643796078162,0.1804,2772.0,2771.7,0.76790025]
[1643796078661,0.1802,2772.2,2771.7,0.76790025]
[1643796079063,0.1802,2772.2,2771.4,0.523]
[1643796079797,0.1802,2772.2,2771.4,0.89293993]
[1643796079798,1.52801126,2772.1,2771.4,0.89293993]
[1643796080002,1.52801126,2772.1,2771.4,0.36993993]
[1643796080003,0.1802,2772.0,2771.4,0.36993993]
[1643796080602,0.1802,2772.0,2771.3,0.54025434]
[1643796081000,1.52809419,2771.9,2771.3,0.54025434]
[1643796081202,0.1804,2771.8,2771.3,0.54025434]
[1643796081402,0.1804,2772.0,2771.3,0.54025434]
[1643796081604,1.52811384,2771.9,2771.3,0.54025434]
[1643796081803,2.05120722,2771.8,2771.3,0.54025434]
[1643796082004,0.1804,2771.8,2771.3,0.54025434]
[1643796082209,2.16036857,2772.0,2771.3,0.54025434]
[1643796082409,1.52814236,2771.9,2771.3,0.54025434]
[1643796082607,0.1804,2771.8,2771.3,0.54025434]
[1643796085164,0.1804,2771.8,2771.1,0.1804]
[1643796085363,0.90184,2771.9,2771.5,0.37937931]
[1643796085571,0.90184,2771.9,2771.7,0.74190673]
[1643796085771,1.80345,2772.5,2771.7,0.74190673]
[1643796085772,0.9017,2772.3,2771.7,0.74190673]
[1643796085970,1.80345,2772.5,2771.7,1.44510673]
[1643796086167,1.52784371,2772.4,2771.7,1.44510673]
[1643796086367,0.1802,2772.6,2771.7,1.44510673]
[1643796086567,1.52781795,2772.5,2772.1,0.33838453]
[1643796087431,0.1802,2772.6,2772.1,1.35958453]
[1643796087624,0.68316376,2773.4,2772.1,1.35958453]
[1643796087625,0.1802,2772.8,2772.2,0.523]
[1643796087826,1.52762866,2772.7,2772.3,0.18434022]
[1643796088029,0.18005,2773.2,2772.2,3.1023]
[1643796088030,1.52762866,2772.6,2772.2,3.1023]
[1643796088231,0.1802,2773.1,2772.1,0.33838453]
[1643796088232,1.52762866,2772.5,2772.1,0.51858453]
[1643796088427,2.11585117,2772.8,2772.0,0.523]
[1643796088627,1.52780191,2772.7,2772.0,0.523]
[1643796088928,1.52780191,2772.7,2771.9,1.1802]
[1643796088929,0.90165,2772.5,2771.9,1.1802]
[1643796089127,1.82780191,2772.4,2771.9,1.1802]
[1643796089329,0.3,2772.4,2771.9,1.1802]
[1643796089525,0.1802,2772.8,2772.0,1.42449]
[1643796089727,1.5277221,2772.7,2772.0,1.42449]
[1643796089932,1.52647062,2772.7,2772.0,1.42449]
[1643796090325,1.52647062,2772.7,2772.2,1.29332369]
[1643796090529,1.52647062,2772.7,2772.0,0.523]
[1643796090530,0.90157,2772.6,2772.0,0.523]
[1643796090731,0.3,2772.5,2772.0,0.523]
[1643796090926,0.3,2772.5,2771.9,1.1802]
[1643796091156,0.3,2772.5,2771.9,0.1802]
[1643796091354,0.3,2772.5,2771.9,1.1802]
[1643796091557,0.3,2772.5,2771.9,0.1802]
[1643796091754,0.3,2772.5,2771.9,1.1802]
[1643796091954,0.3,2772.5,2771.9,0.1802]
[1643796092156,0.3,2772.5,2771.9,1.1802]
[1643796095805,0.3,2772.5,2771.9,1.71419826]
[1643796096004,0.3,2772.5,2771.6,0.523]
[1643796096005,4.95,2772.3,2771.6,0.523]
[1643796096214,4.95,2772.3,2770.7,0.00206333]
[1643796096215,6.31223841,2772.1,2770.7,0.00206333]
[1643796096415,0.01257818,2771.7,2770.7,0.00206333]
[1643796096709,0.1804,2771.6,2770.7,0.00206333]
[1643796096908,0.1804,2771.6,2770.5,0.1804]
[1643796097109,0.1804,2771.6,2770.6,0.902]
[1643796097307,0.1804,2771.6,2770.9,0.33387013]
[1643796097912,0.90206,2771.4,2770.7,0.77794592]
[1643796098113,0.3,2771.3,2770.6,0.902]
[1643796098313,0.3,2771.3,2770.7,0.1804]
[1643796098559,0.4804,2771.4,2770.7,0.1804]
[1643796098958,0.90204,2771.2,2770.8,0.3962457]
[1643796099163,1.20204,2771.2,2770.8,0.3962457]
[1643796099560,1.20204,2771.2,2770.7,0.1804]
[1643796100560,1.52017711,2771.2,2770.7,0.1804]
[1643796100962,1.20204,2771.2,2770.6,0.1804]
[1643796106962,1.89104477,2771.1,2770.6,0.1804]
[1643796107168,1.89104477,2771.1,2770.5,1.08245]
[1643796107169,1.83792603,2771.1,2770.5,1.08245]
[1643796107372,1.20204,2771.2,2770.5,1.08245]
[1643796109067,0.42322671,2771.0,2770.5,1.08245]
[1643796109269,2.10423,2770.9,2770.5,1.08245]
[1643796109672,2.10423,2770.9,2770.5,0.90205]
[1643796109909,4.0234102,2770.9,2770.4,0.1804]
[1643796110108,2.10423,2770.9,2770.4,0.1804]
[1643796110907,3.63812411,2770.8,2770.4,0.1804]
[1643796111106,1.80442,2770.8,2770.3,0.54366846]
[1643796111307,0.3,2770.7,2770.3,0.54366846]
[1643796111509,0.90219,2770.6,2770.3,0.54366846]
[1643796111707,0.3,2770.5,2770.3,0.54366846]
[1643796112309,2.10438,2770.5,2770.3,0.54366846]
[1643796115256,0.3,2770.5,2770.3,0.54366846]
[1643796116557,0.3,2770.5,2770.3,1.44936215]
[1643796116857,0.3,2770.7,2770.3,1.44573846]
[1643796117056,0.1804,2771.0,2770.3,1.62613846]
[1643796117308,0.4804,2771.0,2770.8,0.41151548]
[1643796117512,0.4804,2771.0,2770.3,1.62613846]
[1643796117513,0.4804,2771.0,2770.7,0.90202]
[1643796117718,0.1804,2771.2,2770.7,0.90202]
[1643796117911,0.1804,2771.2,2770.4,1.80403]
[1643796118714,0.1804,2771.2,2770.7,0.38602372]
[1643796118915,0.1804,2771.2,2770.7,0.90203]
[1643796120118,2.02262757,2771.2,2770.4,1.80403]
[1643796120320,0.90212,2771.0,2770.4,1.80403]
[1643796120517,1.20212,2771.0,2770.4,1.80403]
[1643796121463,1.20212,2771.0,2770.5,0.35273699]
[1643796122468,0.3,2771.0,2770.5,0.35273699]
[1643796122669,0.90202,2771.3,2770.5,0.35273699]
[1643796122670,1.38242,2771.3,2770.6,3.04058909]
[1643796122874,0.1804,2771.3,2770.7,1.00494867]
[1643796123068,0.1804,2771.5,2770.8,2.15589208]
[1643796123677,1.08236,2771.5,2771.2,0.86165652]
[1643796123873,0.1804,2771.6,2771.2,0.86165652]
[1643796124075,0.1304,2771.6,2771.2,0.86165652]
[1643796124811,0.90189,2771.8,2771.2,2.78050866]
[1643796125015,0.1804,2771.7,2771.6,0.37985759]
[1643796125214,0.1802,2772.1,2771.6,0.37985759]
[1643796125413,1.52819662,2772.0,2771.3,0.90183]
[1643796125612,0.1802,2771.9,2771.3,0.90183]
[1643796125812,0.4802,2771.9,2771.1,2.1879]
[1643796126012,0.3,2771.9,2771.2,0.90186]
[1643796126218,0.1804,2771.8,2771.2,0.90186]
[1643796126412,0.1804,2772.1,2771.4,0.35573689]
[1643796126612,1.52824788,2772.0,2771.4,0.35573689]
[1643796126811,0.90189,2771.8,2771.4,0.35573689]
[1643796127012,0.4802,2771.9,2771.4,0.35573689]
[1643796127214,0.1802,2771.9,2771.4,0.35573689]
[1643796127424,0.1802,2771.9,2771.3,0.94466558]
[1643796127618,0.1804,2772.1,2771.4,0.9018]
[1643796127820,0.1804,2772.1,2771.4,2.81520782]
[1643796128420,0.1802,2772.2,2771.4,2.81520782]
[1643796128866,0.1802,2772.2,2771.4,3.11520782]
[1643796129062,0.1802,2772.2,2771.6,0.9017]
[1643796129264,0.54521484,2772.2,2771.6,0.9017]
[1643796129460,0.54521484,2772.2,2771.4,0.66065054]
[1643796129661,0.36501484,2772.2,2771.4,1.66065054]
[1643796130260,0.36501484,2772.2,2771.4,1.3]
[1643796130461,2.24911086,2772.2,2771.4,1.3]
[1643796130663,2.24911086,2772.2,2771.5,0.90178]
[1643796130962,0.1802,2772.1,2771.5,0.90178]
[1643796133817,1.98394,2772.1,2771.3,1.98369]
[1643796134025,3.74089186,2772.0,2771.2,0.1802]
[1643796134219,0.90194,2771.8,2771.2,0.1802]
[1643796134420,1.96897601,2771.7,2771.2,0.1802]
[1643796134618,2.26897601,2771.7,2771.2,0.1802]
[1643796134817,2.70624338,2771.7,2771.2,0.1802]
[1643796135021,2.54120737,2771.7,2771.2,0.1802]
[1643796135219,1.91060606,2771.6,2771.2,0.1802]
[1643796135421,2.10394,2771.7,2771.2,0.1802]
[1643796135618,3.40862147,2771.6,2771.2,0.1802]
[1643796135820,2.76292654,2771.6,2771.2,0.1802]
[1643796136057,0.3,2771.5,2771.2,0.1802]
[1643796136259,0.3,2771.5,2771.1,0.1804]
[1643796139912,0.3,2771.5,2771.0,2.52095893]
[1643796141316,0.3,2771.5,2771.0,0.53684893]
[1643796141317,2.43014693,2771.4,2771.0,0.53684893]
[1643796141719,1.82815693,2771.3,2771.0,0.53684893]
[1643796141915,0.3,2771.3,2771.0,0.53684893]
[1643796144167,2.14480234,2771.3,2771.0,0.53684893]
[1643796144373,1.52823252,2771.2,2771.0,0.53684893]
[1643796145369,1.83125687,2771.1,2770.8,0.1804]
[1643796145568,2.73488048,2771.0,2770.4,0.1804]
[1643796145771,3.38916827,2770.9,2770.4,0.1804]
[1643796145967,3.38916827,2770.9,2770.3,1.80422]
[1643796145968,1.86072889,2770.9,2770.3,1.80422]
[1643796146167,2.30979958,2771.2,2770.3,1.80422]
[1643796146367,1.52836393,2771.1,2770.4,0.32670073]
[1643796146566,2.41095555,2771.0,2770.3,1.80422]
[1643796146767,0.90217,2770.8,2770.3,1.80422]
[1643796146973,0.90217,2770.8,2770.3,1.65422]
[1643796147171,0.3,2770.7,2770.3,1.65422]
[1643796147725,0.3,2770.7,2770.5,0.42363956]
[1643796148021,0.90215,2771.0,2770.5,0.42363956]
[1643796148420,1.20215,2771.0,2770.5,0.42363956]
[1643796149634,1.20215,2771.0,2770.3,1.65422]
[1643796149824,1.20215,2771.0,2770.2,0.1804]
[1643796149825,0.1804,2770.9,2770.2,0.1804]
[1643796150023,0.90222,2770.8,2770.2,0.1804]
[1643796150224,0.3,2770.7,2770.2,0.1804]
[1643796150623,0.3,2770.7,2770.4,0.43092397]
[1643796151072,0.3,2770.7,2770.2,0.1804]
[1643796151270,0.3,2770.7,2770.3,0.90218]
[1643796152275,0.3,2770.7,2770.4,0.38493271]
[1643796152874,0.3,2770.7,2770.3,0.90218]
[1643796153275,0.3,2770.7,2770.3,0.85218]
[1643796154176,0.3,2770.7,2770.4,0.34120163]
[1643796156637,0.3,2770.7,2770.5,0.90213]
[1643796156839,0.1804,2770.9,2770.5,0.90213]
[1643796157842,0.1804,2770.9,2770.5,0.85213]
[1643796158244,1.20212,2771.0,2770.5,0.85213]
[1643796158667,1.20212,2771.0,2770.9,0.3907388]
[1643796159565,1.20212,2771.0,2770.7,0.90207]
[1643796161470,1.20212,2771.0,2770.6,0.37332675]
[1643796162069,1.20212,2771.0,2770.6,0.27332675]
[1643796162919,1.20212,2771.0,2770.7,0.90209]
[1643796163520,1.19112,2771.0,2770.7,0.90209]
[1643796164724,1.19112,2771.0,2770.7,2.82041519]
[1643796164924,0.3,2771.0,2770.7,2.82041519]
[1643796165135,0.3,2771.0,2770.8,1.0]
[1643796165328,0.1804,2771.6,2770.9,2.13695829]
[1643796165525,0.1804,2771.7,2771.1,0.90188]
[1643796165724,1.5281011,2771.6,2771.2,0.3433859]
[1643796166171,1.8281011,2771.6,2771.2,0.3433859]
[1643796166470,0.3,2771.6,2771.2,0.3433859]
[1643796166672,0.1804,2772.0,2771.2,0.3433859]
[1643796166875,0.90188,2771.7,2771.3,0.80189]
[1643796167071,0.90188,2771.7,2770.9,2.43695829]
[1643796167072,1.82807006,2771.6,2770.9,0.3]
[1643796167275,1.82807006,2771.6,2770.4,1.01227024]
[1643796167276,1.52807006,2771.5,2770.6,2.95832]
[1643796167477,2.1804,2771.4,2770.6,2.95832]
[1643796167681,1.52807006,2771.3,2770.6,2.95832]
[1643796167879,0.1804,2771.2,2770.6,1.80402]
[1643796168075,0.1804,2771.2,2770.2,0.1804]
[1643796168076,1.52807006,2771.1,2770.4,0.35903624]
[1643796168276,1.52807006,2771.1,2770.4,0.65903624]
[1643796168277,0.3,2771.0,2770.4,0.65903624]
[1643796168477,0.3,2771.0,2770.4,0.83943624]
[1643796168775,2.2847,2771.2,2770.4,0.83943624]
[1643796168977,1.52837291,2771.1,2770.5,0.90215]
[1643796169375,1.8395536,2771.0,2770.5,0.90215]
[1643796169819,0.90218,2770.9,2770.5,0.90215]
[1643796170227,1.20218,2770.9,2770.5,0.90215]
[1643796171218,1.73478,2771.2,2770.5,0.90215]
[1643796171421,1.73478,2771.2,2770.7,0.90204]
[1643796171422,0.1804,2771.2,2770.7,0.90204]
[1643796171618,0.86321376,2772.0,2770.7,0.90204]
[1643796171619,1.4108,2771.7,2770.7,0.7034]
[1643796171917,1.4108,2771.7,2770.7,1.0034]
[1643796171918,1.52819145,2771.6,2770.7,1.0034]
[1643796172118,0.1804,2771.5,2770.7,1.0034]
[1643796172424,1.52819145,2771.4,2771.1,0.90196]
[1643796173224,1.82819145,2771.4,2771.1,0.90196]
[1643796173425,0.90196,2771.3,2771.0,0.32305048]
[1643796173883,3.5,2771.2,2771.1,0.83298473]
[1643796174085,3.5,2771.2,2771.0,1.22505048]
[1643796174282,3.8,2771.2,2771.0,1.22505048]
[1643796175187,3.5,2771.2,2771.0,2.04805048]
[1643796175392,3.5,2771.2,2771.0,3.04805048]
[1643796175583,3.5,2771.2,2771.0,1.74805048]
[1643796175784,3.5,2771.2,2771.0,0.902]
[1643796175988,3.5,2771.2,2770.8,1.80387]
[1643796176187,1.52830704,2771.1,2770.8,1.80387]
[1643796176385,3.5,2771.2,2770.8,1.80387]
[1643796176386,4.40206,2771.2,2770.8,1.80387]
[1643796176587,0.3,2771.0,2770.8,1.80387]